[Event "Asian Amateur Rapid 2024"]
[Site "Al Ain"]
[Date "2024.12.15"]
[Round "2.4"]
[White "Mohamed Saeed Laily"]
[Black "Kim, Taewoo A"]
[Result "1/2-1/2"]
[ECO "A85"]
[WhiteElo "1984"]
[BlackElo "1863"]
[Annotator "RC"]
[PlyCount "86"]
[EventDate "2024.12.15"]
[EventType "swiss"]
[EventCountry "UAE"]
[SourceTitle "playchess.com"]
[Source "ChessBase"]
[SourceQuality "1"]
[TimeControl "900+10"]

1. d4 {[%emt 0:00:02]} d5 {[%emt 0:00:03]} 2. c4 {[%emt 0:00:01]} e6 {[%emt 0:00:01]} 3. Nc3 {[%emt 0:00:01]} c6 {[%emt 0:00:02]} 4. e3 {[%emt 0:01:55]} f5 {[%emt 0:00:12]} 5. Nf3 {[%emt 0:00:07]} Nf6 {[%emt 0:00:02]} 6. Bd3 {[%emt 0:00:59]} Bd6 {[%emt 0:00:03]} 7. O-O {[%emt 0:00:21]} O-O {[%emt 0:00:03]} 8. b3 {[%emt 0:02:56]} Nbd7 {[%emt 0:00:07]} 9. Bb2 {[%emt 0:00:08]} Ne4 {[%emt 0:00:25]} 10. Ne2 {[%emt 0:00:43]} Qf6 {[%emt 0:02:07]} 11. Nd2 {[%emt 0:02:37]} Qh6 {[%emt 0:00:57]} 12. f4 {[%emt 0:01:21]} g5 {[%emt 0:01:21]} 13. Bxe4 {[%emt 0:00:45]} fxe4 {[%emt 0:00:07]} 14. g3 {[%emt 0:00:16]} g4 {[%emt 0:03:16]} 15. Nc3 {[%emt 0:01:43]} Nf6 {[%emt 0:00:21]} 16. Qe2 {[%emt 0:00:18]} Qg6 {[%emt 0:00:29]} 17. c5 {[%emt 0:01:12]} Bc7 {[%emt 0:00:22]} 18. b4 {[%emt 0:00:00]} h5 {[%emt 0:00:20]} 19. Kg2 {[%emt 0:00:02]} Kg7 {[%emt 0:00:24]} 20. a4 {[%emt 0:00:10]} h4 {[%emt 0:00:51]} 21. Rh1 {[%emt 0:00:21]} Rh8 {[%emt 0:00:27]} 22. b5 {[%emt 0:00:01]} Bd7 {[%emt 0:00:44]} 23. a5 {[%emt 0:00:13]} Raf8 {[%emt 0:00:20]} 24. b6 {[%emt 0:00:40]} axb6 {[%emt 0:00:08]} 25. cxb6 {[%emt 0:00:02]} Bb8 {[%emt 0:00:16]} 26. Ba3 {[%emt 0:01:00]} Rf7 {[%emt 0:00:13]} 27. Nb3 {[%emt 0:00:20]} Ne8 {[%emt 0:01:37]} 28. Nc5 {[%emt 0:00:08]} Nd6 {[%emt 0:00:21]} 29. Nxb7 {[%emt 0:00:51]} Nxb7 {[%emt 0:00:20]} 30. a6 {[%emt 0:00:01]} Nd6 {[%emt 0:00:55]} 31. a7 {[%emt 0:00:01]} Bxa7 {[%emt 0:00:04]} 32. bxa7 {[%emt 0:00:02]} Nc4 {[%emt 0:00:06]} 33. Bc5 {[%emt 0:00:12]} Ra8 {[%emt 0:00:38]} 34. Rab1 {[%emt 0:00:06]} Be8 {[%emt 0:00:37]} 35. Rb8 {[%emt 0:00:30]} Rfxa7 {[%emt 0:00:02]} 36. Bxa7 {[%emt 0:00:03]} Rxa7 {[%emt 0:00:01]} 37. Rhb1 {[%emt 0:00:10]} Nd6 {[%emt 0:00:34]} 38. Rd8 {[%emt 0:00:51]} Nb7 {[%emt 0:00:59]} 39. Rb8 {[%emt 0:00:02]} Nd6 {[%emt 0:00:01]} 40. Rd8 {[%emt 0:00:01]} Nb7 {[%emt 0:00:01]} 41. Rb8 {[%emt 0:00:01]} Nd6 {[%emt 0:02:03]} 42. Rd8 {[%emt 0:00:57]} Nb7 43. Rb8 {[%emt 0:00:10]} Nd6 {[%emt 0:00:20]} 1/2-1/2

[Event "Asian Amateur Rapid 2024"]
[Site "Al Ain"]
[Date "2024.12.15"]
[Round "2.5"]
[White "Ahmad, Al Romaithi"]
[Black "Mohamed Yousuf Al-Ali"]
[Result "1-0"]
[ECO "B12"]
[WhiteElo "1976"]
[BlackElo "1569"]
[Annotator "RC"]
[PlyCount "139"]
[EventDate "2024.12.15"]
[EventType "swiss"]
[EventCountry "UAE"]
[SourceTitle "playchess.com"]
[Source "ChessBase"]
[SourceQuality "1"]
[TimeControl "900+10"]

1. e4 {[%emt 0:00:02]} c6 {[%emt 0:00:01]} 2. d4 {[%emt 0:00:03]} d5 {[%emt 0:00:01]} 3. e5 {[%emt 0:00:02]} Bf5 {[%emt 0:00:02]} 4. Nf3 {[%emt 0:00:07]} e6 {[%emt 0:00:05]} 5. Be2 {[%emt 0:00:02]} c5 {[%emt 0:00:14]} 6. Be3 {[%emt 0:00:02]} c4 {[%emt 0:00:10]} 7. O-O {[%emt 0:00:21]} Nc6 {[%emt 0:00:11]} 8. b3 {[%emt 0:00:03]} cxb3 {[%emt 0:00:04]} 9. axb3 {[%emt 0:00:03]} Rc8 {[%emt 0:15:52]} 10. c4 {[%emt 0:00:12]} a6 {[%emt 0:00:00]} 11. c5 {[%emt 0:00:25]} h6 {[%emt 0:00:00]} 12. Nc3 {[%emt 0:00:02]} Nge7 {[%emt 0:00:00]} 13. Na4 {[%emt 0:00:08]} g5 {[%emt 0:00:00]} 14. Nb6 {[%emt 0:00:06]} Rc7 {[%emt 0:00:00]} 15. Ne1 {[%emt 0:00:02]} Bg6 {[%emt 0:00:00]} 16. Bh5 {[%emt 0:01:27]} Rg8 {[%emt 0:00:00]} 17. Kh1 {[%emt 0:00:21]} Nf5 {[%emt 0:00:00]} 18. Bxg6 {[%emt 0:00:22]} Rxg6 {[%emt 0:00:00]} 19. Qd3 {[%emt 0:00:29]} g4 {[%emt 0:00:00]} 20. f3 {[%emt 0:00:32]} Nxe5 {[%emt 0:00:00]} 21. dxe5 {[%emt 0:00:14]} Nxe3 {[%emt 0:00:00]} 22. Qxe3 {[%emt 0:00:08]} Bxc5 {[%emt 0:00:00]} 23. Qf4 {[%emt 0:00:21]} Bxb6 {[%emt 0:00:00]} 24. fxg4 {[%emt 0:00:05]} Qg5 {[%emt 0:00:00]} 25. Qb4 {[%emt 0:00:33]} Qe3 {[%emt 0:00:00]} 26. Nf3 {[%emt 0:00:36]} Rc2 {[%emt 0:00:00]} 27. Rae1 {[%emt 0:01:47]} Qc5 {[%emt 0:01:08]} 28. Qf4 {[%emt 0:00:03]} Qe7 {[%emt 0:01:45]} 29. Rc1 {[%emt 0:00:55]} Rc7 {[%emt 0:00:14]} 30. h4 {[%emt 0:00:37]} Qd7 {[%emt 0:00:12]} 31. h5 {[%emt 0:00:41]} Rg8 {[%emt 0:00:09]} 32. Qxh6 {[%emt 0:00:13]} Rxg4 {[%emt 0:00:01]} 33. Qh8+ {[%emt 0:00:02]} Ke7 {[%emt 0:00:01]} 34. Qf6+ {[%emt 0:00:08]} Kf8 {[%emt 0:00:02]} 35. Rxc7 {[%emt 0:00:45]} Bxc7 {[%emt 0:00:32]} 36. h6 {[%emt 0:01:46]} Kg8 {[%emt 0:00:08]} 37. h7+ {[%emt 0:00:29]} Kxh7 {[%emt 0:00:11]} 38. Ng5+ {[%emt 0:00:02]} Kg8 {[%emt 0:00:04]} 39. Qh6 {[%emt 0:00:53]} Rxg5 {[%emt 0:00:15]} 40. Qxg5+ {[%emt 0:00:03]} Kf8 {[%emt 0:00:01]} 41. Qh6+ {[%emt 0:00:08]} Ke7 {[%emt 0:00:26]} 42. Qf6+ {[%emt 0:00:04]} Ke8 {[%emt 0:00:01]} 43. Qh8+ {[%emt 0:00:02]} Ke7 {[%emt 0:00:03]} 44. Qf6+ {[%emt 0:00:19]} Ke8 {[%emt 0:00:10]} 45. Rf3 {[%emt 0:00:08]} Qe7 {[%emt 0:00:19]} 46. Qh8+ {[%emt 0:00:15]} Qf8 {[%emt 0:00:13]} 47. Qh5 {[%emt 0:00:16]} Qg7 {[%emt 0:00:11]} 48. Rf6 {[%emt 0:00:12]} Bd8 {[%emt 0:00:11]} 49. Rxe6+ {[%emt 0:00:03]} Kd7 {[%emt 0:00:09]} 50. Rd6+ {[%emt 0:00:05]} Kc7 {[%emt 0:00:04]} 51. Qh3 {[%emt 0:00:19]} f6 {[%emt 0:00:19]} 52. Qc3+ {[%emt 0:00:28]} Kb8 {[%emt 0:00:08]} 53. Rxd8+ {[%emt 0:00:02]} Ka7 {[%emt 0:00:02]} 54. Qd4+ {[%emt 0:00:25]} b6 {[%emt 0:00:03]} 55. Rxd5 {[%emt 0:00:08]} Qh6+ {[%emt 0:00:03]} 56. Kg1 {[%emt 0:00:03]} Qc1+ {[%emt 0:00:02]} 57. Kf2 {[%emt 0:00:10]} Qc2+ {[%emt 0:00:03]} 58. Kf3 {[%emt 0:00:09]} Qf5+ {[%emt 0:00:02]} 59. Kg3 {[%emt 0:00:20]} Qg5+ {[%emt 0:00:22]} 60. Qg4 {[%emt 0:00:12]} Qe3+ {[%emt 0:00:02]} 61. Qf3 {[%emt 0:00:02]} Qg5+ {[%emt 0:00:03]} 62. Kf2 {[%emt 0:00:19]} Qh4+ {[%emt 0:00:32]} 63. Ke2 {[%emt 0:00:03]} Qh7 {[%emt 0:00:14]} 64. exf6 {[%emt 0:00:19]} Qc7 {[%emt 0:00:34]} 65. f7 {[%emt 0:00:14]} Qc2+ {[%emt 0:00:04]} 66. Rd2 {[%emt 0:00:03]} Qc7 {[%emt 0:00:09]} 67. f8=Q {[%emt 0:00:09]} Qe5+ {[%emt 0:00:02]} 68. Qe3 {[%emt 0:00:06]} Qh5+ {[%emt 0:00:07]} 69. Qff3 {[%emt 0:00:02]} Qb5+ {[%emt 0:00:01]} 70. Kf2 {[%emt 0:00:03]} 1-0

[Event "Asian Amateur Rapid 2024"]
[Site "Al Ain"]
[Date "2024.12.15"]
[Round "2.6"]
[White "Umarov, Mukhammadrizo"]
[Black "Saket Atul Kumar"]
[Result "1-0"]
[ECO "A26"]
[WhiteElo "1902"]
[BlackElo "1633"]
[Annotator "RC"]
[PlyCount "87"]
[EventDate "2024.12.15"]
[EventType "swiss"]
[EventCountry "UAE"]
[SourceTitle "playchess.com"]
[Source "ChessBase"]
[SourceQuality "1"]
[TimeControl "900+10"]

1. c4 {[%emt 0:00:06]} e5 {[%emt 0:00:02]} 2. Nc3 {[%emt 0:00:01]} Nc6 {[%emt 0:00:03]} 3. Nf3 {[%emt 0:00:03]} Nf6 {[%emt 0:00:01]} 4. g3 {[%emt 0:00:01]} g6 {[%emt 0:00:01]} 5. Bg2 {[%emt 0:00:12]} Bg7 {[%emt 0:00:02]} 6. O-O {[%emt 0:00:10]} O-O {[%emt 0:00:03]} 7. d3 {[%emt 0:02:26]} d6 {[%emt 0:00:03]} 8. Rb1 {[%emt 0:00:07]} a5 {[%emt 0:00:01]} 9. a3 {[%emt 0:00:01]} h6 {[%emt 0:00:02]} 10. b4 {[%emt 0:00:13]} axb4 {[%emt 0:00:01]} 11. axb4 {[%emt 0:00:01]} Be6 {[%emt 0:00:00]} 12. Nd2 {[%emt 0:01:23]} Qd7 {[%emt 0:00:22]} 13. b5 {[%emt 0:00:16]} Nd8 {[%emt 0:00:10]} 14. Re1 {[%emt 0:00:08]} Bh3 {[%emt 0:00:03]} 15. Bh1 {[%emt 0:00:01]} Ng4 {[%emt 0:00:01]} 16. Nd5 {[%emt 0:02:03]} Rc8 {[%emt 0:02:36]} 17. Bb2 {[%emt 0:01:59]} Kh7 {[%emt 0:03:20]} 18. Ra1 {[%emt 0:02:22]} f5 {[%emt 0:00:28]} 19. Ra7 {[%emt 0:00:19]} f4 {[%emt 0:00:18]} 20. Ne4 {[%emt 0:00:29]} fxg3 {[%emt 0:00:18]} 21. hxg3 {[%emt 0:00:10]} Qf5 {[%emt 0:02:30]} 22. f3 {[%emt 0:00:57]} Nf6 {[%emt 0:00:57]} 23. Ne7 {[%emt 0:01:07]} Qh5 {[%emt 0:00:17]} 24. Nxc8 {[%emt 0:00:35]} Nxe4 {[%emt 0:00:03]} 25. dxe4 {[%emt 0:00:22]} Bxc8 {[%emt 0:00:23]} 26. Bg2 {[%emt 0:01:38]} Ne6 {[%emt 0:00:25]} 27. Bc1 {[%emt 0:00:58]} Ng5 {[%emt 0:00:17]} 28. Bxg5 {[%emt 0:00:19]} Qxg5 {[%emt 0:00:01]} 29. Kf2 {[%emt 0:00:06]} h5 {[%emt 0:00:03]} 30. e3 {[%emt 0:01:05]} h4 {[%emt 0:00:34]} 31. gxh4 {[%emt 0:00:20]} Qxh4+ {[%emt 0:00:05]} 32. Ke2 {[%emt 0:00:04]} Bh6 {[%emt 0:00:04]} 33. Rh1 {[%emt 0:00:11]} Qg5 {[%emt 0:00:01]} 34. Qg1 {[%emt 0:00:06]} Be6 {[%emt 0:00:17]} 35. Ra4 {[%emt 0:00:06]} Rf7 {[%emt 0:00:12]} 36. Bf1 {[%emt 0:00:11]} Qf6 {[%emt 0:00:11]} 37. Qg3 {[%emt 0:00:10]} Kg7 {[%emt 0:00:07]} 38. Bg2 {[%emt 0:00:03]} c6 {[%emt 0:00:10]} 39. b6 {[%emt 0:00:25]} d5 {[%emt 0:00:01]} 40. Qh4 {[%emt 0:00:09]} g5 {[%emt 0:00:04]} 41. Qh5 {[%emt 0:00:23]} dxe4 {[%emt 0:00:38]} 42. c5 {[%emt 0:00:10]} exf3+ {[%emt 0:00:23]} 43. Bxf3 {[%emt 0:00:06]} Qf5 {[%emt 0:00:23]} 44. Qxh6+ {[%emt 0:00:03]} 1-0

[Event "Asian Amateur Rapid 2024"]
[Site "Al Ain"]
[Date "2024.12.15"]
[Round "2.7"]
[White "Manuwaruna, Sethun Neththaru"]
[Black "AbuAzizah, Raji"]
[Result "0-1"]
[ECO "D00"]
[WhiteElo "1933"]
[BlackElo "2161"]
[Annotator "RC"]
[PlyCount "88"]
[EventDate "2024.12.15"]
[EventType "swiss"]
[EventCountry "UAE"]
[SourceTitle "playchess.com"]
[Source "ChessBase"]
[SourceQuality "1"]
[TimeControl "900+10"]

1. d4 {[%emt 0:00:02]} Nf6 {[%emt 0:00:01]} 2. Nc3 {[%emt 0:00:04]} d5 {[%emt 0:00:02]} 3. Bf4 {[%emt 0:00:02]} g6 {[%emt 0:00:02]} 4. e3 {[%emt 0:00:02]} Bg7 {[%emt 0:00:02]} 5. h4 {[%emt 0:00:02]} h5 {[%emt 0:00:02]} 6. Nf3 {[%emt 0:00:32]} O-O {[%emt 0:00:02]} 7. Ne5 {[%emt 0:02:23]} c5 {[%emt 0:00:02]} 8. dxc5 {[%emt 0:00:37]} Qa5 {[%emt 0:00:28]} 9. Bd3 {[%emt 0:00:48]} Na6 {[%emt 0:00:53]} 10. Bxa6 {[%emt 0:01:24]} bxa6 {[%emt 0:00:22]} 11. O-O {[%emt 0:01:14]} Qxc5 {[%emt 0:00:30]} 12. Qd4 {[%emt 0:00:57]} Qxd4 {[%emt 0:00:18]} 13. exd4 {[%emt 0:00:01]} Bf5 {[%emt 0:00:05]} 14. Nc6 {[%emt 0:01:12]} Rfe8 {[%emt 0:00:28]} 15. Nb4 {[%emt 0:00:34]} Rac8 {[%emt 0:00:45]} 16. Nxa6 {[%emt 0:01:39]} Bxc2 {[%emt 0:00:24]} 17. Rfe1 {[%emt 0:00:11]} e6 {[%emt 0:00:27]} 18. Nc5 {[%emt 0:00:56]} Ng4 {[%emt 0:01:05]} 19. Nb5 {[%emt 0:01:12]} Bxd4 {[%emt 0:03:50]} 20. Nxd4 {[%emt 0:00:13]} Rxc5 {[%emt 0:00:01]} 21. Rac1 {[%emt 0:00:17]} Rec8 {[%emt 0:00:02]} 22. f3 {[%emt 0:01:26]} Nf6 {[%emt 0:00:08]} 23. Bd6 {[%emt 0:00:32]} Rc4 {[%emt 0:00:17]} 24. Be5 {[%emt 0:00:40]} Nd7 {[%emt 0:00:14]} 25. Nxc2 {[%emt 0:01:28]} Nxe5 {[%emt 0:00:06]} 26. Rxe5 {[%emt 0:00:14]} Rxc2 {[%emt 0:00:01]} 27. Rb1 {[%emt 0:00:25]} Rd2 {[%emt 0:00:07]} 28. Re3 {[%emt 0:00:23]} Rcc2 {[%emt 0:00:03]} 29. Rb3 {[%emt 0:00:04]} Rxg2+ {[%emt 0:00:03]} 30. Kf1 {[%emt 0:00:01]} g5 {[%emt 0:01:08]} 31. hxg5 {[%emt 0:00:18]} h4 {[%emt 0:00:02]} 32. f4 {[%emt 0:00:08]} Rh2 {[%emt 0:00:02]} 33. Kg1 {[%emt 0:00:05]} h3 {[%emt 0:00:02]} 34. Rg3 {[%emt 0:00:12]} Rxb2 {[%emt 0:00:51]} 35. Rxb2 {[%emt 0:00:24]} Rxb2 {[%emt 0:00:02]} 36. Ra3 {[%emt 0:00:02]} d4 {[%emt 0:00:18]} 37. Rd3 {[%emt 0:00:16]} Rxa2 {[%emt 0:00:18]} 38. Rxh3 {[%emt 0:00:16]} Kg7 {[%emt 0:00:15]} 39. Rd3 {[%emt 0:00:06]} Ra4 {[%emt 0:00:01]} 40. Kf2 {[%emt 0:00:04]} Kg6 {[%emt 0:00:01]} 41. Kf3 {[%emt 0:00:02]} Kf5 {[%emt 0:00:01]} 42. Rb3 {[%emt 0:00:20]} a6 {[%emt 0:00:02]} 43. Rd3 {[%emt 0:00:04]} Rc4 {[%emt 0:00:02]} 44. Ra3 {[%emt 0:00:04]} Rc3+ {[%emt 0:00:02]} 0-1

[Event "Asian Amateur Rapid 2024"]
[Site "Al Ain"]
[Date "2024.12.15"]
[Round "2.8"]
[White "Fedorov, Grigory"]
[Black "Al Balushi, Salim"]
[Result "1-0"]
[ECO "E07"]
[WhiteElo "1916"]
[BlackElo "1612"]
[Annotator "RC"]
[PlyCount "46"]
[EventDate "2024.12.15"]
[EventType "swiss"]
[EventCountry "UAE"]
[SourceTitle "playchess.com"]
[Source "ChessBase"]
[SourceQuality "1"]
[TimeControl "900+10"]

1. d4 {[%emt 0:00:02]} d5 {[%emt 0:00:12]} 2. c4 {[%emt 0:00:02]} e6 {[%emt 0:00:12]} 3. Nf3 {[%emt 0:00:06]} Nf6 {[%emt 0:00:03]} 4. g3 {[%emt 0:00:02]} Be7 {[%emt 0:00:10]} 5. Bg2 {[%emt 0:00:03]} O-O {[%emt 0:00:04]} 6. O-O {[%emt 0:00:04]} c6 {[%emt 0:00:02]} 7. Nc3 {[%emt 0:00:57]} Nbd7 {[%emt 0:00:28]} 8. Re1 {[%emt 0:00:28]} dxc4 {[%emt 0:00:44]} 9. e3 {[%emt 0:03:39]} b5 {[%emt 0:00:14]} 10. Nd2 {[%emt 0:00:19]} Nd5 {[%emt 0:00:22]} 11. e4 {[%emt 0:02:25]} Nb4 {[%emt 0:00:33]} 12. d5 {[%emt 0:01:07]} a6 {[%emt 0:05:47]} 13. h4 {[%emt 0:01:49]} Ne5 {[%emt 0:00:41]} 14. a3 {[%emt 0:03:40]} Nbd3 {[%emt 0:00:22]} 15. Rf1 {[%emt 0:00:03]} Qb6 {[%emt 0:01:15]} 16. Nf3 {[%emt 0:00:35]} Ng4 {[%emt 0:00:41]} 17. Qe2 {[%emt 0:00:27]} Bc5 {[%emt 0:00:02]} 18. Nd1 {[%emt 0:00:37]} exd5 {[%emt 0:00:21]} 19. exd5 {[%emt 0:00:30]} Bf5 {[%emt 0:00:14]} 20. Be3 {[%emt 0:00:24]} Nxe3 {[%emt 0:00:40]} 21. Nxe3 {[%emt 0:00:05]} Rfe8 {[%emt 0:00:11]} 22. dxc6 {[%emt 0:00:19]} Bxe3 {[%emt 0:00:10]} 23. fxe3 {[%emt 0:00:04]} Rxe3 {[%emt 0:00:03]} 1-0

[Event "Asian Amateur Rapid 2024"]
[Site "Al Ain"]
[Date "2024.12.15"]
[Round "2.9"]
[White "Soud, Jaber"]
[Black "Ibrahim Imran Saeed"]
[Result "1-0"]
[ECO "D35"]
[WhiteElo "1956"]
[BlackElo "1681"]
[Annotator "RC"]
[PlyCount "73"]
[EventDate "2024.12.15"]
[EventType "swiss"]
[EventCountry "UAE"]
[SourceTitle "playchess.com"]
[Source "ChessBase"]
[SourceQuality "1"]
[TimeControl "900+10"]

1. d4 {[%emt 0:00:02]} d5 {[%emt 0:00:04]} 2. c4 {[%emt 0:00:01]} e6 {[%emt 0:00:03]} 3. Nc3 {[%emt 0:00:02]} Nf6 {[%emt 0:00:04]} 4. cxd5 {[%emt 0:00:02]} exd5 {[%emt 0:00:05]} 5. Bg5 {[%emt 0:00:01]} c6 {[%emt 0:00:16]} 6. e3 {[%emt 0:00:03]} h6 {[%emt 0:00:11]} 7. Bh4 {[%emt 0:00:02]} Bd6 {[%emt 0:00:10]} 8. Bd3 {[%emt 0:00:03]} O-O {[%emt 0:00:09]} 9. Qc2 {[%emt 0:00:02]} Re8 {[%emt 0:00:10]} 10. Nf3 {[%emt 0:00:12]} Bg4 {[%emt 0:00:41]} 11. h3 {[%emt 0:00:39]} Bd7 {[%emt 0:00:34]} 12. Bxf6 {[%emt 0:03:08]} Qxf6 {[%emt 0:00:03]} 13. O-O-O {[%emt 0:00:22]} a5 {[%emt 0:00:07]} 14. e4 {[%emt 0:12:51]} dxe4 {[%emt 0:02:26]} 15. Nxe4 {[%emt 0:00:00]} Qf4+ {[%emt 0:00:25]} 16. Kb1 {[%emt 0:00:00]} Na6 {[%emt 0:00:37]} 17. Nxd6 {[%emt 0:00:00]} Qxd6 {[%emt 0:00:02]} 18. a3 {[%emt 0:00:00]} b5 {[%emt 0:01:00]} 19. Ne5 {[%emt 0:00:00]} b4 {[%emt 0:01:05]} 20. Bxa6 {[%emt 0:00:00]} Rxa6 {[%emt 0:00:11]} 21. Qc4 {[%emt 0:00:00]} Bf5+ {[%emt 0:01:46]} 22. Ka1 {[%emt 0:00:00]} Ra7 {[%emt 0:01:08]} 23. Qxc6 {[%emt 0:00:00]} Qe7 {[%emt 0:01:01]} 24. Qf3 {[%emt 0:00:00]} Bh7 {[%emt 0:00:57]} 25. Nc6 {[%emt 0:00:00]} Qc7 {[%emt 0:00:49]} 26. Nxa7 {[%emt 0:00:00]} Qxa7 {[%emt 0:00:31]} 27. Rhe1 {[%emt 0:00:00]} Rb8 {[%emt 0:00:05]} 28. Qc6 {[%emt 0:00:00]} Bg6 {[%emt 0:00:25]} 29. Re8+ {[%emt 0:00:00]} Rxe8 {[%emt 0:00:02]} 30. Qxe8+ {[%emt 0:00:00]} Kh7 {[%emt 0:00:02]} 31. Qa4 {[%emt 0:00:00]} Qc7 {[%emt 0:00:20]} 32. d5 {[%emt 0:00:43]} Bc2 {[%emt 0:00:39]} 33. Qc6 {[%emt 0:00:32]} Qxc6 {[%emt 0:03:00]} 34. dxc6 {[%emt 0:00:02]} Bf5 {[%emt 0:00:15]} 35. c7 {[%emt 0:00:04]} bxa3 {[%emt 0:00:04]} 36. bxa3 {[%emt 0:00:01]} Kg8 {[%emt 0:00:05]} 37. c8=Q+ {[%emt 0:00:00]} 1-0

[Event "Asian Amateur Rapid 2024"]
[Site "Al Ain"]
[Date "2024.12.15"]
[Round "2.10"]
[White "Sendi, David V"]
[Black "Olimjonov, Muhammadziyo"]
[Result "1/2-1/2"]
[ECO "C14"]
[WhiteElo "1747"]
[BlackElo "1505"]
[Annotator "NA RC"]
[PlyCount "90"]
[EventDate "2024.12.15"]
[EventType "swiss"]
[EventCountry "UAE"]
[SourceTitle "playchess.com"]
[Source "ChessBase"]
[SourceQuality "1"]
[TimeControl "900+10"]

1. e4 {[%emt 0:00:04]} e6 {[%emt 0:00:11]} 2. d4 {[%emt 0:00:02]} d5 {[%emt 0:00:01]} 3. Nc3 {[%emt 0:00:12]} Nf6 {[%emt 0:00:03]} 4. Bg5 {[%emt 0:00:54]} Be7 {[%emt 0:00:03]} 5. e5 {[%emt 0:01:30]} Nfd7 {[%emt 0:00:14]} 6. Bxe7 {[%emt 0:00:04]} Qxe7 {[%emt 0:00:07]} 7. f4 {[%emt 0:00:31]} a6 {[%emt 0:00:07]} 8. Nf3 {[%emt 0:00:08]} c5 {[%emt 0:00:15]} 9. Ne2 {[%emt 0:00:33]} c4 {[%emt 0:00:03]} 10. c3 {[%emt 0:00:25]} b5 {[%emt 0:00:03]} 11. g3 {[%emt 0:00:15]} a5 {[%emt 0:00:02]} 12. Bg2 {[%emt 0:00:08]} b4 {[%emt 0:00:03]} 13. O-O {[%emt 0:00:19]} Nc6 {[%emt 0:00:12]} 14. Nh4 {[%emt 0:00:48]} f5 {[%emt 0:00:21]} 15. exf6 {[%emt 0:00:37]} Nxf6 {[%emt 0:01:11]} 16. Nf3 {[%emt 0:00:46]} O-O {[%emt 0:00:27]} 17. h3 {[%emt 0:00:41]} Rb8 {[%emt 0:00:18]} 18. Ne5 {[%emt 0:01:07]} Nxe5 {[%emt 0:00:35]} 19. fxe5 {[%emt 0:00:21]} Nd7 {[%emt 0:00:05]} 20. Rxf8+ {[%emt 0:00:10]} Nxf8 {[%emt 0:00:02]} 21. Qd2 {[%emt 0:00:29]} Bd7 {[%emt 0:00:02]} 22. Rf1 {[%emt 0:01:00]} bxc3 {[%emt 0:00:23]} 23. bxc3 {[%emt 0:00:05]} a4 {[%emt 0:00:36]} 24. Qc2 {[%emt 0:03:21]} a3 {[%emt 0:00:02]} 25. Rb1 {[%emt 0:00:09]} Qd8 {[%emt 0:00:51]} 26. Rb4 {[%emt 0:00:19]} Rb5 {[%emt 0:01:40]} 27. Qb1 {[%emt 0:00:29]} Qb6 {[%emt 0:00:13]} 28. Rxb5 {[%emt 0:00:09]} Qxb5 {[%emt 0:00:09]} 29. Qxb5 {[%emt 0:00:03]} Bxb5 {[%emt 0:00:02]} 30. Kf2 {[%emt 0:00:41]} Ba4 {[%emt 0:00:01]} 31. Ke3 {[%emt 0:00:13]} Bc2 {[%emt 0:00:02]} 32. Kd2 {[%emt 0:00:25]} Bb1 {[%emt 0:00:03]} 33. Bf3 {[%emt 0:00:20]} Bxa2 {[%emt 0:00:16]} 34. Kc2 {[%emt 0:00:01]} Bb3+ {[%emt 0:00:01]} 35. Kb1 {[%emt 0:00:01]} Nd7 {[%emt 0:00:59]} 36. Bg4 {[%emt 0:00:06]} Kf7 {[%emt 0:00:07]} 37. Nf4 {[%emt 0:00:10]} Nf8 {[%emt 0:00:04]} 38. h4 {[%emt 0:00:24]} g6 {[%emt 0:00:38]} 39. Bh3 {[%emt 0:00:18]} h6 {[%emt 0:00:16]} 40. Bg4 {[%emt 0:00:20]} g5 {[%emt 0:01:55]} 41. hxg5 {[%emt 0:00:04]} hxg5 {[%emt 0:00:02]} 42. Nh3 {[%emt 0:00:28]} Kg6 {[%emt 0:00:31]} 43. Nf2 {[%emt 0:00:31]} a2+ {[%emt 0:05:28]} 44. Ka1 {[%emt 0:00:03]} Bc2 {[%emt 0:00:03]} 45. Kxa2 {[%emt 0:00:21]} Bf5 {[%emt 0:00:02]} 1/2-1/2

[Event "Asian Amateur Rapid 2024"]
[Site "Al Ain"]
[Date "2024.12.15"]
[Round "2.11"]
[White "Dadabaev, Zhanybek"]
[Black "Shelke Omkar"]
[Result "0-1"]
[ECO "A45"]
[WhiteElo "1927"]
[BlackElo "1764"]
[Annotator "RC"]
[PlyCount "72"]
[EventDate "2024.12.15"]
[EventType "swiss"]
[EventCountry "UAE"]
[SourceTitle "playchess.com"]
[Source "ChessBase"]
[SourceQuality "1"]
[TimeControl "900+10"]

1. d4 {[%emt 0:00:02]} Nf6 {[%emt 0:00:01]} 2. Bf4 {[%emt 0:00:04]} c6 {[%emt 0:00:04]} 3. e3 {[%emt 0:00:19]} Qb6 {[%emt 0:00:24]} 4. b3 {[%emt 0:00:59]} d6 {[%emt 0:00:01]} 5. Bd3 {[%emt 0:00:26]} g6 {[%emt 0:00:03]} 6. Nf3 {[%emt 0:00:08]} Nh5 {[%emt 0:00:01]} 7. Bg3 {[%emt 0:00:17]} Nxg3 {[%emt 0:00:03]} 8. hxg3 {[%emt 0:00:01]} Bg7 {[%emt 0:00:01]} 9. Nbd2 {[%emt 0:00:09]} c5 {[%emt 0:00:13]} 10. c3 {[%emt 0:00:10]} d5 {[%emt 0:00:28]} 11. Rc1 {[%emt 0:00:04]} Nd7 {[%emt 0:00:18]} 12. Qe2 {[%emt 0:14:31]} O-O {[%emt 0:00:13]} 13. Ng5 {[%emt 0:00:00]} h6 {[%emt 0:00:20]} 14. Nh3 {[%emt 0:00:00]} e5 {[%emt 0:00:08]} 15. dxe5 {[%emt 0:00:00]} Nxe5 {[%emt 0:00:02]} 16. Bb1 {[%emt 0:00:00]} Re8 {[%emt 0:01:02]} 17. O-O {[%emt 0:00:00]} Bg4 {[%emt 0:00:22]} 18. f3 {[%emt 0:00:00]} Bxh3 {[%emt 0:02:52]} 19. gxh3 {[%emt 0:00:00]} c4 {[%emt 0:00:40]} 20. Kg2 {[%emt 0:00:00]} Nd3 {[%emt 0:00:49]} 21. Bxd3 {[%emt 0:00:00]} Rxe3 {[%emt 0:00:05]} 22. Qf2 {[%emt 0:00:00]} Rxd3 {[%emt 0:00:03]} 23. bxc4 {[%emt 0:00:00]} Qxf2+ {[%emt 0:02:01]} 24. Rxf2 {[%emt 0:00:00]} dxc4 {[%emt 0:00:01]} 25. Nxc4 {[%emt 0:00:00]} Rc8 {[%emt 0:00:07]} 26. Nb2 {[%emt 0:00:00]} Rdxc3 {[%emt 0:00:34]} 27. Rxc3 {[%emt 0:00:00]} Rxc3 {[%emt 0:00:02]} 28. Nd1 {[%emt 0:00:00]} Ra3 {[%emt 0:01:11]} 29. Rd2 {[%emt 0:00:54]} b5 {[%emt 0:00:24]} 30. Kf2 {[%emt 0:00:08]} a5 {[%emt 0:00:29]} 31. Ne3 {[%emt 0:00:11]} Bc3 {[%emt 0:01:03]} 32. Rc2 {[%emt 0:01:03]} Bd4 {[%emt 0:00:09]} 33. Re2 {[%emt 0:00:03]} Bxe3+ {[%emt 0:00:05]} 34. Rxe3 {[%emt 0:00:01]} Rxa2+ {[%emt 0:00:02]} 35. Ke1 {[%emt 0:00:02]} b4 {[%emt 0:00:06]} 36. f4 {[%emt 0:00:10]} a4 {[%emt 0:00:23]} 0-1